fUSD/lending_fUSD_20250415
["ID","MTS","AMOUNT","RATE_DAILY","PERIOD"]
[358108027,1744726240748,-500.0,0.00017999,2]
[358108028,1744726240758,-500.0,0.00017999,2]
[358108029,1744726240768,-500.0,0.00017999,2]
[358108030,1744726240777,-500.0,0.00017999,2]
[358108031,1744726240786,-500.0,0.00017999,2]
[358108032,1744726240797,-500.0,0.00017999,2]
[358108033,1744726240807,-500.0,0.00017999,2]
[358108034,1744726240817,-500.0,0.00017999,2]
[358108035,1744726240826,-536.68289512,0.00017999,2]
[358108036,1744726240836,-500.0,0.00017999,2]
[358108037,1744726240846,-500.0,0.00017999,2]
[358108038,1744726240856,-174.03742631,0.00017999,2]
[358108039,1744726240865,-500.0,0.00017999,2]
[358108040,1744726240874,-500.0,0.00017999,2]
[358108041,1744726240883,-500.0,0.00017999,2]
[358108042,1744726240892,-500.0,0.00017999,2]
[358108043,1744726240901,-500.0,0.00017999,2]
[358108044,1744726240911,-500.0,0.00017999,2]
[358108045,1744726240920,-530.06932245,0.00017999,2]
[358108046,1744726240929,-500.0,0.00017999,2]
[358108047,1744726240938,-500.0,0.00017999,2]
[358108048,1744726240947,-500.0,0.00017999,2]
[358108049,1744726240956,-500.0,0.00017999,2]
[358108050,1744726240965,-500.0,0.00017999,2]
[358108051,1744726240974,-500.0,0.00017999,2]
[358108052,1744726240983,-500.0,0.00017999,2]
[358108053,1744726240992,-500.0,0.00017999,2]
[358108054,1744726241001,-500.0,0.00017999,2]
[358108055,1744726241010,-480.53560626,0.00017999,2]
[358108056,1744726241019,-500.0,0.00017999,2]
[358108057,1744726241028,-562.60725412,0.00017999,2]
[358108058,1744726241037,-500.0,0.00017999,2]
[358108059,1744726241047,-533.26,0.00017999,2]
[358108060,1744726241057,-500.0,0.00017999,2]
[358108061,1744726241066,-500.0,0.00017999,2]
[358108062,1744726241075,-500.0,0.00017999,2]
[358108063,1744726241084,-500.0,0.00017999,2]
[358108064,1744726241093,-500.0,0.00017999,2]
[358108065,1744726241103,-534.9524165,0.00017999,2]
[358108066,1744726241113,-500.0,0.00017999,2]
[358108067,1744726241123,-500.0,0.00017999,2]
[358108068,1744726241132,-500.0,0.00017999,2]
[358108069,1744726241143,-500.0,0.00017999,2]
[358108070,1744726241153,-500.0,0.00017999,2]
[358108071,1744726241163,-500.0,0.00017999,2]
[358108072,1744726241172,-500.0,0.00017999,2]
[358108073,1744726241182,-500.0,0.00017999,2]
[358108074,1744726241192,-500.0,0.00017999,2]
[358108075,1744726241201,-471.60609909,0.00017999,2]
[358108076,1744726241211,-500.0,0.00017999,2]
[358108077,1744726241221,-500.0,0.00017999,2]
[358108078,1744726241231,-500.0,0.00017999,2]
[358108079,1744726241240,-500.0,0.00017999,2]
[358108080,1744726241250,-500.0,0.00017999,2]
[358108081,1744726241259,-500.0,0.00017999,2]
[358108082,1744726241269,-500.0,0.00017999,2]
[358108083,1744726241278,-500.0,0.00017999,2]
[358108084,1744726241287,-500.0,0.00017999,2]
[358108085,1744726241297,-500.0,0.00017999,2]
[358108086,1744726241307,-500.0,0.00017999,2]
[358108087,1744726241316,-500.0,0.00017999,2]
[358108088,1744726241325,-494.68634992,0.00017999,2]
[358108089,1744726241335,-500.0,0.00017999,2]
[358108090,1744726241345,-500.0,0.00017999,2]
[358108091,1744726241355,-506.93065253,0.00017999,2]
[358108092,1744726241364,-500.0,0.00017999,2]
[358108093,1744726241374,-309.72573638,0.00017999,2]
[358108094,1744726241384,-500.0,0.00017999,2]
[358108095,1744726241394,-500.0,0.00017999,2]
[358108096,1744726241403,-500.0,0.00017999,2]
[358108097,1744726241414,-500.0,0.00017999,2]
[358108098,1744726241424,-500.0,0.00017999,2]
[358108099,1744726241440,-500.0,0.00017999,2]
[358108100,1744726241449,-500.0,0.00017999,2]
[358108101,1744726241459,-500.0,0.00017999,2]
[358108102,1744726241469,-500.0,0.00017999,2]
[358108103,1744726241480,-500.0,0.00017999,2]
[358108104,1744726241490,-500.0,0.00017999,2]
[358108105,1744726241499,-150.0,0.00017999,2]
[358108106,1744726241511,-500.0,0.00017999,2]
[358108107,1744726241520,-500.0,0.00017999,2]
[358108108,1744726241530,-282.73717381,0.00017999,2]
[358108109,1744726241540,-150.0,0.00017999,2]
[358108110,1744726241551,-500.0,0.00017999,2]
[358108111,1744726241562,-500.0,0.00017999,2]
[358108112,1744726241572,-500.0,0.00017999,2]
[358108113,1744726241581,-500.0,0.00017999,2]
[358108114,1744726241591,-550.29909938,0.00017999,2]
[358108115,1744726241601,-150.0,0.00017999,2]
[358108117,1744726241611,-500.0,0.00017999,2]
[358108118,1744726241621,-176.90117586,0.00017999,2]
[358108119,1744726241631,-500.0,0.00017999,2]
[358108120,1744726241641,-500.0,0.00017999,2]
[358108121,1744726241651,-500.0,0.00017999,2]
[358108122,1744726241661,-500.0,0.00017999,2]
[358108123,1744726241671,-1000.0,0.00017999,2]
[358108124,1744726241681,-500.0,0.00017999,2]
[358108125,1744726241691,-500.0,0.00017999,2]
[358108126,1744726241701,-500.0,0.00017999,2]
[358108127,1744726241710,-541.2737918,0.00017999,2]
[358108128,1744726241719,-500.0,0.00017999,2]
[358108129,1744726241730,-500.0,0.00017999,2]
[358108130,1744726241739,-629.77,0.00017999,2]
[358108131,1744726241749,-500.0,0.00017999,2]
[358108132,1744726241758,-500.0,0.00017999,2]
[358108133,1744726241770,-500.0,0.00017999,2]
[358108134,1744726241780,-388.94210029,0.00017999,2]
[358108135,1744726241790,-500.0,0.00017999,2]
[358108136,1744726241800,-500.0,0.00017999,2]
[358108137,1744726241810,-500.0,0.00017999,2]
[358108138,1744726241819,-500.0,0.00017999,2]
[358108139,1744726241828,-643.73,0.00017999,2]
[358108140,1744726241838,-500.0,0.00017999,2]
[358108141,1744726241847,-500.0,0.00017999,2]
[358108142,1744726241858,-365.34,0.00017999,2]
[358108143,1744726241867,-500.0,0.00017999,2]
[358108144,1744726241876,-500.0,0.00017999,2]
[358108145,1744726241888,-500.0,0.00017999,2]
[358108146,1744726241898,-150.0,0.00017999,2]
[358108147,1744726241908,-500.0,0.00017999,2]
[358108148,1744726241918,-500.0,0.00017999,2]
[358108149,1744726241928,-500.0,0.00017999,2]
[358108150,1744726241938,-500.0,0.00017999,2]
[358108151,1744726241947,-150.0,0.00017999,2]
[358108152,1744726241957,-500.0,0.00017999,2]
[358108153,1744726241966,-500.0,0.00017999,2]
[358108154,1744726241975,-500.0,0.00017999,2]
[358108155,1744726241985,-500.0,0.00017999,2]
[358108156,1744726241994,-500.0,0.00017999,2]
[358108157,1744726242004,-500.0,0.00017999,2]
[358108158,1744726242013,-500.0,0.00017999,2]
[358108159,1744726242024,-500.0,0.00017999,2]
[358108160,1744726242033,-500.0,0.00017999,2]
[358108161,1744726242044,-500.0,0.00017999,2]
[358108162,1744726242053,-150.0,0.00017999,2]
[358108163,1744726242063,-572.54455698,0.00017999,2]
[358108164,1744726242072,-500.0,0.00017999,2]
[358108165,1744726242082,-491.19221745,0.00017999,2]
[358108166,1744726242092,-500.0,0.00017999,2]
[358108167,1744726242102,-500.0,0.00017999,2]
[358108168,1744726242112,-500.0,0.00017999,2]
[358108169,1744726242123,-500.0,0.00017999,2]
[358108170,1744726242134,-500.0,0.00017999,2]
[358108171,1744726242144,-500.0,0.00017999,2]
[358108172,1744726242154,-500.0,0.00017999,2]
[358108173,1744726242163,-500.0,0.00017999,2]
[358108174,1744726242172,-997.36,0.00017999,2]
[358108175,1744726242180,-997.36,0.00017999,2]
[358108176,1744726242188,-997.36,0.00017999,2]
[358108177,1744726242197,-997.36,0.00017999,2]
[358108178,1744726242207,-997.36,0.00017999,2]
[358108179,1744726242217,-500.0,0.00017999,2]
[358108180,1744726242226,-150.0,0.00017999,2]
[358108181,1744726242236,-997.36,0.00017999,2]
[358108182,1744726242246,-997.36,0.00017999,2]
[358108183,1744726242255,-997.36,0.00017999,2]
[358108184,1744726242265,-997.36,0.00017999,2]
[358108185,1744726242274,-500.0,0.00017999,2]
[358108186,1744726242284,-997.36,0.00017999,2]
[358108187,1744726242295,-500.0,0.00017999,2]
[358108188,1744726242304,-997.36,0.00017999,2]
[358108189,1744726242313,-997.36,0.00017999,2]
[358108190,1744726242323,-997.36,0.00017999,2]
[358108191,1744726242333,-997.36,0.00017999,2]
[358108192,1744726242343,-997.36,0.00017999,2]
[358108193,1744726242352,-500.0,0.00017999,2]
[358108194,1744726242362,-997.36,0.00017999,2]
[358108195,1744726242371,-500.0,0.00017999,2]
[358108196,1744726242380,-997.36,0.00017999,2]
[358108197,1744726242389,-500.0,0.00017999,2]
[358108198,1744726242398,-997.36,0.00017999,2]
[358108199,1744726242408,-500.0,0.00017999,2]
[358108200,1744726242417,-500.0,0.00017999,2]
[358108201,1744726242427,-997.36,0.00017999,2]
[358108202,1744726242439,-500.0,0.00017999,2]
[358108203,1744726242450,-997.36,0.00017999,2]
[358108204,1744726242459,-500.0,0.00017999,2]
[358108205,1744726242470,-997.36,0.00017999,2]
[358108206,1744726242480,-500.0,0.00017999,2]
[358108207,1744726242489,-500.0,0.00017999,2]
[358108208,1744726242499,-997.36,0.00017999,2]
[358108209,1744726242509,-500.0,0.00017999,2]
[358108210,1744726242519,-997.36,0.00017999,2]
[358108211,1744726242530,-500.0,0.00017999,2]
[358108212,1744726242539,-500.0,0.00017999,2]
[358108213,1744726242552,-997.52594254,0.00017999,2]
[358108214,1744726242562,-500.0,0.00017999,2]
[358108215,1744726242572,-500.0,0.00017999,2]
[358108216,1744726242583,-500.0,0.00017999,2]
[358108217,1744726242595,-500.0,0.00017999,2]
[358108219,1744726242605,-304.51,0.00017999,2]
[358108221,1744726242615,-500.0,0.00017999,2]
[358108223,1744726242625,-500.0,0.00017999,2]
[358108224,1744726242634,-500.0,0.00017999,2]
[358108225,1744726242644,-150.0,0.00017999,2]
[358108226,1744726242654,-500.0,0.00017999,2]
[358108227,1744726242664,-500.0,0.00017999,2]
[358108228,1744726242673,-500.0,0.00017999,2]
[358108229,1744726242683,-500.0,0.00017999,2]
[358108231,1744726242694,-500.0,0.00017999,2]
[358108233,1744726242704,-500.0,0.00017999,2]
[358108235,1744726242714,-500.0,0.00017999,2]
[358108237,1744726242723,-500.0,0.00017999,2]
[358108239,1744726242733,-525.97489228,0.00017999,2]
[358108241,1744726242744,-500.0,0.00017999,2]
[358108243,1744726242754,-500.0,0.00017999,2]
[358108244,1744726242765,-500.0,0.00017999,2]
[358108245,1744726242774,-500.0,0.00017999,2]
[358108246,1744726242784,-500.0,0.00017999,2]
[358108247,1744726242795,-313.40714447,0.00017999,2]
[358108248,1744726242805,-195.87862162,0.00017999,2]
[358108249,1744726242815,-500.0,0.00017999,2]
[358108250,1744726242825,-500.0,0.00017999,2]
[358108251,1744726242834,-500.0,0.00017999,2]
[358108252,1744726242844,-500.0,0.00017999,2]
[358108253,1744726242854,-500.0,0.00017999,2]
[358108254,1744726242864,-500.0,0.00017999,2]
[358108255,1744726242874,-500.0,0.00017999,2]
[358108256,1744726242884,-500.0,0.00017999,2]
[358108257,1744726242893,-500.0,0.00017999,2]
[358108258,1744726242903,-500.0,0.00017999,2]
[358108259,1744726242912,-500.0,0.00017999,2]
[358108260,1744726242921,-513.1066719,0.00017999,2]
[358108261,1744726242931,-500.0,0.00017999,2]
[358108262,1744726242940,-504.55749132,0.00017999,2]
[358108263,1744726242950,-500.0,0.00017999,2]
[358108264,1744726242959,-500.0,0.00017999,2]
[358108265,1744726242969,-500.0,0.00017999,2]
[358108266,1744726242979,-500.0,0.00017999,2]
[358108267,1744726242988,-500.0,0.00017999,2]
[358108268,1744726242997,-500.0,0.00017999,2]
[358108269,1744726243007,-500.0,0.00017999,2]
[358108270,1744726243017,-635.69,0.00017999,2]
[358108271,1744726243026,-500.0,0.00017999,2]
[358108272,1744726243035,-500.0,0.00017999,2]
[358108273,1744726243046,-500.0,0.00017999,2]
[358108274,1744726243055,-500.0,0.00017999,2]
[358108275,1744726243065,-500.0,0.00017999,2]
[358108276,1744726243075,-500.0,0.00017999,2]
[358108277,1744726243084,-500.0,0.00017999,2]
[358108278,1744726243094,-500.0,0.00017999,2]
[358108279,1744726243104,-500.0,0.00017999,2]
[358108280,1744726243114,-500.0,0.00017999,2]
[358108281,1744726243123,-500.0,0.00017999,2]
[358108282,1744726243133,-500.0,0.00017999,2]
[358108283,1744726243142,-500.0,0.00017999,2]
[358108284,1744726243153,-500.0,0.00017999,2]
[358108285,1744726243161,-492.0,0.00017999,2]
[358108286,1744726243171,-500.0,0.00017999,2]
[358108287,1744726243181,-500.0,0.00017999,2]
[358108288,1744726243190,-350.0,0.00017999,2]
[358108289,1744726243200,-500.0,0.00017999,2]
[358108290,1744726243210,-500.0,0.00017999,2]
[358108291,1744726243219,-500.0,0.00017999,2]
[358108292,1744726243229,-500.0,0.00017999,2]
[358108293,1744726243238,-500.0,0.00017999,2]
[358108294,1744726243248,-500.0,0.00017999,2]
[358108295,1744726243258,-500.0,0.00017999,2]
[358108296,1744726243267,-500.0,0.00017999,2]
[358108297,1744726243276,-500.0,0.00017999,2]
[358108298,1744726243286,-514.27471308,0.00017999,2]
[358108299,1744726243295,-500.0,0.00017999,2]
[358108300,1744726243305,-500.0,0.00017999,2]
[358108301,1744726243314,-525.94565379,0.00017999,2]
[358108302,1744726243324,-106.9461532,0.00017999,2]
[358108303,1744726243679,-393.0538468,0.00017999,2]
[358108304,1744726243689,-121.23241965,0.00017999,2]
[358108305,1744726243703,-378.76758035,0.00017999,2]
[358108306,1744726243713,-157.21,0.00017999,2]
[358108307,1744726243723,-500.0,0.00017999,2]
[358108308,1744726243732,-321.38863267,0.00017999,2]
[358108310,1744726244019,-178.61136733,0.00017999,2]
[358108311,1744726244028,-500.0,0.00017999,2]
[358108312,1744726244037,-531.398914,0.00017999,2]
[358108313,1744726244048,-500.0,0.00017999,2]
[358108314,1744726244056,-500.0,0.00017999,2]
[358108315,1744726244064,-500.0,0.00017999,2]
[358108316,1744726244072,-500.0,0.00017999,2]
[358108317,1744726244081,-500.0,0.00017999,2]
[358108318,1744726244090,-548.40695254,0.00017999,2]
[358108319,1744726244098,-500.0,0.00017999,2]
[358108320,1744726244107,-119.88276615,0.00017999,2]
[358108321,1744726244118,-380.11723385,0.00017999,2]
[358108322,1744726244127,-500.0,0.00017999,2]
[358108323,1744726244137,-291.79282669,0.00017999,2]
[358108324,1744726244146,-500.0,0.00017999,2]
[358108325,1744726244156,-500.0,0.00017999,2]
[358108326,1744726244166,-500.0,0.00017999,2]
[358108327,1744726244175,-500.0,0.00017999,2]
[358108328,1744726244185,-500.0,0.00017999,2]
[358108329,1744726244195,-500.0,0.00017999,2]
[358108330,1744726244204,-500.0,0.00017999,2]
[358108331,1744726244214,-500.0,0.00017999,2]
[358108332,1744726244224,-500.0,0.00017999,2]
[358108333,1744726244234,-500.0,0.00017999,2]
[358108334,1744726244243,-531.53274776,0.00017999,2]
[358108336,1744726244253,-500.0,0.00017999,2]
[358108337,1744726244262,-500.0,0.00017999,2]
[358108338,1744726244272,-500.0,0.00017999,2]
[358108339,1744726244282,-507.8630701,0.00017999,2]
[358108340,1744726244292,-500.0,0.00017999,2]
[358108341,1744726244303,-500.0,0.00017999,2]
[358108342,1744726244312,-500.0,0.00017999,2]
[358108343,1744726244322,-516.10661865,0.00017999,2]
[358108344,1744726244332,-500.0,0.00017999,2]
[358108345,1744726244341,-561.20036472,0.00017999,2]
[358108346,1744726244350,-500.0,0.00017999,2]
[358108347,1744726244360,-342.53711599,0.00017999,2]
[358108348,1744726244369,-228.74032668,0.00017999,2]
[358108349,1744726244379,-500.0,0.00017999,2]
[358108350,1744726244388,-504.60399056,0.00017999,2]
[358108351,1744726244398,-500.0,0.00017999,2]
[358108352,1744726244407,-500.0,0.00017999,2]
[358108353,1744726244416,-500.0,0.00017999,2]
[358108354,1744726244426,-500.0,0.00017999,2]
[358108355,1744726244439,-1130.0,0.00018,2]
[358108356,1744726244457,-150.0,0.00018,2]
[358108357,1744726244470,-28.98410499,0.00018,2]
[358108358,1744726244483,-471.24495328,0.00018,2]
[358108359,1744726244493,-633.75504672,0.00018,2]
[358108360,1744726244506,-7781.0000001,0.00018,2]
[358108361,1744726244528,-500.0,0.00017999,2]
[358108362,1744726244537,-1644.99998304,0.00018,2]
[358108363,1744726244551,-630.04677717,0.00018,2]
[358108364,1744726244805,-500.0,0.00017999,2]
[358108365,1744726244815,-500.0,0.00017999,2]
[358108366,1744726244827,-500.0,0.00017999,2]
[358108367,1744726244837,-500.0,0.00017999,2]
[358108368,1744726244847,-44.59002003,0.00017999,2]
[358108369,1744726244858,-455.40997997,0.00017999,2]
[358108370,1744726244868,-500.0,0.00017999,2]
[358108371,1744726244878,-500.0,0.00017999,2]
[358108372,1744726244887,-500.0,0.00017999,2]
[358108373,1744726244896,-500.0,0.00017999,2]
[358108374,1744726244906,-332972.48062512,0.00018,2]
[358108375,1744726244917,-2100.05512954,0.00018,2]
[358108376,1744726244928,-4128.97177876,0.00018,2]
[358108377,1744726244940,-606.05829084,0.00018,2]
[358108378,1744726244957,-150.0,0.00017841,2]
[358108379,1744726244967,-1800.0,0.00018,2]
[358108380,1744726244978,-8394.79999999,0.00018,2]
[358108381,1744726244989,-2185.12290278,0.00018,2]
[358108382,1744726245001,-5130.16895925,0.00018,2]
[358108383,1744726245018,-500.0,0.00017999,2]
[358108384,1744726245027,-138.39468912,0.00018,2]
[358108385,1744726245038,-777.30004535,0.00018,2]
[358108386,1744726245050,-34430.93862785,0.00018,2]
[358108387,1744726245067,-205.62175446,0.00017869,2]
[358108388,1744726245076,-4087.19596454,0.00018,2]
[358108389,1744726245271,-5513.0441,0.00017899,2]
[358108390,1744726245281,-500.0,0.00017999,2]
[358108391,1744726245290,-500.0,0.00017999,2]
[358108392,1744726245301,-500.0,0.00017999,2]
[358108393,1744726245310,-616.76002116,0.00017999,2]
[358108394,1744726245320,-500.0,0.00017999,2]
[358108395,1744726245329,-500.0,0.00017999,2]
[358108396,1744726245339,-500.0,0.00017999,2]
[358108397,1744726245348,-413.22,0.00017999,2]
[358108398,1744726245358,-500.0,0.00017999,2]
[358108399,1744726245367,-500.0,0.00017999,2]
[358108400,1744726245376,-500.0,0.00017999,2]
[358108401,1744726245386,-10476.97587884,0.00018,2]
[358108402,1744726245397,-2112.10060774,0.00018,2]
[358108415,1744726247536,-863.786817,0.00018,2]
[358108416,1744726247549,-66657.64910273,0.00018,2]
[358108417,1744726247560,-25186.3396482,0.00018,2]
[358108418,1744726247606,-222.34903443,0.00017999,2]
[358108419,1744726247615,-723.71914557,0.00018,2]
[358108420,1744726247627,-410.0,0.00018,2]
[358108421,1744726247638,-360.39736247,0.00018,2]
[358108422,1744726247649,-1531.98850713,0.00018,2]
[358108423,1744726247660,-4103.65,0.00018,2]
[358108424,1744726247671,-1291.75040115,0.00018,2]
[358108425,1744726247682,-537.0000005,0.00018,2]
[358108426,1744726247693,-4623.47901057,0.00018,2]
[358108435,1744726323363,339.31,0.00017414,2]
[358108439,1744726383817,2608.27,0.00017163,2]
[358108440,1744726453436,250.0,0.00017,2]
[358108441,1744726471549,179.50943059,0.00016915,2]
[358108442,1744726482259,1145.6,0.00015188,2]
[358108443,1744726482465,1145.6,0.00017452,2]
[358108444,1744726493794,250.0,0.00017,2]
[358108445,1744726504810,1693.29,0.00017,2]
[358108446,1744726507119,1693.29,0.00017,2]
[358108448,1744726646163,430.62,0.00017132,2]
[358108449,1744726683657,2000.0,0.000185,3]
[358108451,1744726754689,150.0,0.00023,21]
[358108452,1744726854662,622.77,0.00016966,2]
[358108453,1744726995853,164.32,0.00016926,2]
[358108454,1744727009824,250.0,0.00016939,2]
[358108455,1744727045810,250.0,0.0001738,2]
[358108456,1744727086769,200.0,0.000265,120]
[358108459,1744727237037,250.0,0.00016951,2]
[358108479,1744727381880,1000.0,0.00016907,2]
[358108522,1744727432424,-170.33371239,0.00017599,2]
[358108547,1744727432599,-302.0,0.00017599,2]
[358108548,1744727432611,-188.35792521,0.00017599,2]
[358108549,1744727432620,-250.0,0.00017608,2]
[358108550,1744727432629,-191.03,0.00017623,2]
[358108551,1744727432638,-88.64445349,0.00017641,2]
[358108552,1744727432650,-117.61260587,0.00017641,2]
[358108553,1744727432659,-344.39233411,0.00017682,2]
[358108554,1744727432671,-300.2,0.00017682,2]
[358108555,1744727432683,-4395.86506589,0.00017682,2]
[358108556,1744727432692,-300.0,0.00017699,2]
[358108557,1744727432702,-300.0,0.00017699,2]
[358108558,1744727432712,-1580.67,0.000177,2]
[358108559,1744727432722,-404.57694113,0.000177,2]
[358108560,1744727432731,-300.0,0.000177,2]
[358108561,1744727432741,-715.68787425,0.0001772,2]
[358108562,1744727432750,-150.0,0.00017741,2]
[358108563,1744727432763,-715.68787426,0.00017755,2]
[358108564,1744727432773,-161.94686325,0.00017776,2]
[358108565,1744727432782,-163.68652,0.0001782,2]
[358108566,1744727432792,-2341.44635013,0.0001782,2]
[358108567,1744727432802,-9720.43251108,0.00017855,2]
[358108568,1744727432814,-305.72859,0.00017855,2]
[358108569,1744727432828,-326.29134845,0.00017855,2]
[358108570,1744727432839,-881.66242241,0.00017855,2]
[358108571,1744727432851,-350.0,0.00017855,2]
[358108572,1744727432863,-305.11400002,0.00017855,2]
[358108573,1744727432875,-1043.81180349,0.00017855,2]
[358108574,1744727438236,-310.81932455,0.00017855,2]
[358108575,1744727438246,-1420.34067545,0.00017856,2]
[358108576,1744727438263,-6411.10002982,0.00017856,2]
[358108577,1744727438274,-1307.3,0.00017856,2]
[358108578,1744727438285,-17010.0,0.00017856,2]
[358108579,1744727438296,-818.45381982,0.00017856,2]
[358108580,1744727438307,-1572.89999994,0.00017856,2]
[358108581,1744727438318,-659.66256401,0.00017856,2]
[358108582,1744727438331,-1564.61661334,0.00017856,2]
[358108583,1744727438340,-459.63338666,0.00017872,2]
[358108584,1744727438351,-632.29697555,0.00017872,2]
[358108585,1744727438362,-1568.45592623,0.00017872,2]
[358108586,1744727438372,-12500.0,0.00017882,2]
[358108587,1744727438381,-1395.141,0.00017891,2]
[358108588,1744727438390,-173.664,0.00017891,2]
[358108589,1744727438399,-12500.0,0.00017891,2]
[358108590,1744727438408,-161.91343993,0.00017898,2]
[358108591,1744727438418,-1000.0,0.00017898,2]
[358108592,1744727438427,-161.9134399,0.00017898,2]
[358108593,1744727438435,-161.9134399,0.00017899,2]
[358108594,1744727438444,-4159.4731,0.00017899,2]
[358108595,1744727438453,-161.9134399,0.00017899,2]
[358108596,1744727438462,-161.9134399,0.000179,2]
[358108597,1744727438472,-12500.0,0.000179,2]
[358108598,1744727438482,-2240.89,0.000179,2]
[358108599,1744727438491,-262.14229625,0.000179,2]
[358108600,1744727438501,-330.7768089,0.000179,2]
[358108601,1744727438512,-2992.97029732,0.000179,2]
[358108602,1744727438522,-161.9134399,0.000179,2]
[358108603,1744727438532,-159.17867154,0.000179,2]
[358108604,1744727438541,-216.19675875,0.000179,2]
[358108605,1744727438551,-9316.0,0.00017973,2]
[358108606,1744727438563,-375.55212983,0.00017973,2]
[358108607,1744727438576,-500.0,0.00017973,2]
[358108608,1744727438587,-500.0,0.00017973,2]
[358108609,1744727438601,-159.94705688,0.00017973,2]
[358108610,1744727438613,-507.21124372,0.00017973,2]
[358108611,1744727438624,-500.0,0.00017973,2]
[358108612,1744727438638,-162.14699852,0.00017973,2]
[358108613,1744727438654,-500.0,0.00017973,2]
[358108614,1744727438665,-500.0,0.00017973,2]
[358108615,1744727438677,-923.1647473,0.00017986,2]
[358108616,1744727438689,-970.113793,0.00017988,2]
[358108617,1744727438699,-668.65185757,0.00017989,2]
[358108618,1744727438709,-207.4,0.00017989,2]
[358108620,1744727438721,-203.85643877,0.00017998,2]
[358108621,1744727438732,-353.96509741,0.00017998,2]
[358108623,1744727438742,-506.92630829,0.00017998,2]
[358108625,1744727438755,-411.69084837,0.00017998,2]
[358108627,1744727438767,-627.85675222,0.00017998,2]
[358108629,1744727438781,-500.0,0.00017998,2]
[358108631,1744727438791,-617.3800504,0.00017998,2]
[358108633,1744727438800,-500.0,0.00017998,2]
[358108635,1744727438809,-500.0,0.00017998,2]
[358108637,1744727438819,-500.0,0.00017998,2]
[358108639,1744727438832,-189.18566208,0.00017998,2]
[358108640,1744727438844,-500.0,0.00017998,2]
[358108641,1744727438854,-570.51779091,0.00017998,2]
[358108642,1744727438864,-500.0,0.00017998,2]
[358108643,1744727438875,-500.0,0.00017998,2]
[358108644,1744727438885,-500.0,0.00017998,2]
[358108645,1744727438895,-938.392217,0.00017998,2]
[358108646,1744727438905,-500.0,0.00017998,2]
[358108647,1744727438916,-500.0,0.00017998,2]
[358108648,1744727438926,-500.0,0.00017998,2]
[358108649,1744727438936,-388.94210029,0.00017998,2]
[358108650,1744727438945,-500.0,0.00017998,2]
[358108651,1744727438955,-500.0,0.00017998,2]
[358108652,1744727438965,-500.0,0.00017998,2]
[358108653,1744727438975,-500.0,0.00017998,2]
[358108654,1744727438986,-500.0,0.00017998,2]
[358108655,1744727438995,-500.0,0.00017998,2]
[358108656,1744727439005,-500.0,0.00017998,2]
[358108657,1744727439016,-500.0,0.00017998,2]
[358108658,1744727439026,-500.0,0.00017998,2]
[358108659,1744727439036,-500.0,0.00017998,2]
[358108660,1744727439045,-500.0,0.00017998,2]
[358108661,1744727439055,-500.0,0.00017998,2]